bitfinex/quotes_ETHUSD_20250803
["timestamp","ask_amount","ask_price","bid_price","bid_amount"]
[1754224998164,0.001,3495.7,3495.5,4.358]
[1754224998365,0.4925,3495.7,3495.5,4.358]
[1754224998866,0.4925,3495.7,3495.6,0.55]
[1754224999702,0.9573,3495.7,3495.6,0.55]
[1754225001201,0.9573,3495.7,3495.6,3.55]
[1754225001718,0.9073,3495.7,3495.6,3.55]
[1754225001998,0.9073,3495.7,3495.6,4.907]
[1754225002505,0.9073,3495.7,3495.6,4.357]
[1754225005570,0.9073,3495.7,3495.3,0.860182]
[1754225005803,0.9563,3495.6,3495.3,0.860182]
[1754225006011,0.4915,3495.5,3495.4,4.357]
[1754225006212,0.9563,3495.5,3495.4,4.357]
[1754225007110,0.001,3495.9,3495.4,5.66794569]
[1754225007293,0.001,3495.9,3495.5,0.93372687]
[1754225007475,0.001,3495.9,3495.6,4.357]
[1754225007802,0.001,3495.9,3495.6,4.8474]
[1754225008005,0.001,3495.9,3495.8,0.1432]
[1754225008205,0.001,3495.9,3495.8,5.28376759]
[1754225008424,0.001,3495.9,3495.8,5.7836901]
[1754225008611,0.001,3495.9,3495.8,6.75796759]
[1754225011178,0.001,3495.9,3495.8,9.75796759]
[1754225012256,0.4427,3497.5,3495.9,3.55]
[1754225012563,0.4427,3497.5,3496.1,0.55]
[1754225012728,2.275136,3499.0,3496.3,3.55]
[1754225013057,0.99131115,3498.9,3497.4,0.1432]
[1754225013221,2.419542,3499.0,3497.4,0.1432]
[1754225013222,0.99131115,3498.8,3497.8,0.1432]
[1754225013415,2.275136,3499.0,3497.9,4.356]
[1754225013416,0.99131115,3498.7,3497.9,4.356]
[1754225013622,0.9018,3498.6,3497.9,4.356]
[1754225013913,0.9018,3498.5,3498.0,0.00947614]
[1754225014243,0.9018,3498.8,3498.1,0.1432]
[1754225014441,0.9018,3498.8,3498.2,4.355]
[1754225014629,0.9018,3498.7,3498.3,4.355]
[1754225014831,0.4591,3498.9,3498.3,4.355]
[1754225015126,0.4427,3498.7,3498.4,4.355]
[1754225015324,0.4591,3498.6,3498.5,4.355]
[1754225015524,0.9018,3498.6,3498.5,4.36]
[1754225016017,0.9018,3498.6,3498.0,0.1432]
[1754225016213,0.93752959,3498.5,3498.0,0.1432]
[1754225016439,0.9018,3498.4,3498.1,4.36]
[1754225016720,0.9018,3498.3,3498.1,4.36]
[1754225016914,0.29415504,3498.8,3498.1,4.36]
[1754225017122,0.9018,3498.2,3498.1,4.36]
[1754225018461,0.9018,3498.2,3497.9,0.1432]
[1754225018651,0.58427146,3498.7,3498.1,4.362]
[1754225019319,0.4427,3498.6,3498.1,4.362]
[1754225019530,0.4591,3498.5,3498.1,4.362]
[1754225019756,0.9018,3498.4,3498.1,4.362]
[1754225020080,0.4427,3498.3,3498.1,4.362]
[1754225020279,0.4427,3498.3,3498.1,5.221492]
[1754225020581,0.4427,3498.6,3498.1,5.2309666]
[1754225020758,0.4427,3498.6,3498.2,0.4558]
[1754225020942,0.25842851,3498.8,3498.3,0.00947052]
[1754225021142,0.4427,3498.8,3498.4,0.46526759]
[1754225021379,0.4427,3498.7,3498.2,0.1432]
[1754225021544,0.9018,3498.7,3498.3,4.362]
[1754225021965,0.9018,3498.6,3498.3,4.362]
[1754225022182,0.9018,3498.5,3498.3,4.362]
[1754225022385,0.3176936,3498.8,3498.3,4.362]
[1754225022550,0.9018,3498.4,3498.3,4.362]
[1754225022945,0.4591,3498.7,3498.3,4.362]
[1754225023151,0.4427,3498.4,3498.3,4.362]
[1754225023849,0.4427,3498.4,3498.0,0.1432]
[1754225024154,0.4427,3498.3,3498.2,0.4591]
[1754225024648,0.4591,3498.6,3498.2,0.4591]
[1754225024856,0.4427,3498.5,3498.2,0.4591]
[1754225025087,0.4591,3498.6,3498.2,0.4591]
[1754225025388,0.4427,3498.4,3498.2,0.4591]
[1754225026396,0.4427,3498.4,3498.2,1.00111]
[1754225026979,0.4427,3498.9,3498.2,1.00111]
[1754225027168,0.4427,3498.8,3498.2,1.45691]
[1754225027369,0.4591,3498.7,3498.4,0.1432]
[1754225027571,0.9018,3498.7,3498.5,4.36]
[1754225027769,0.9018,3498.7,3498.2,0.4591]
[1754225027970,0.93752857,3498.6,3498.3,4.363]
[1754225028169,2.275136,3499.0,3498.3,4.363]
[1754225028170,3.0,3498.9,3498.3,4.363]
[1754225028498,0.9018,3498.8,3497.8,3.4473759]
[1754225028796,0.9018,3498.7,3497.9,4.364]
[1754225028999,0.9018,3498.6,3497.9,4.364]
[1754225029311,0.4427,3498.6,3498.0,1.28251759]
[1754225029610,2.275136,3499.0,3498.3,0.1432]
[1754225029780,2.717836,3499.0,3498.4,4.364]
[1754225030499,2.275136,3499.0,3498.5,0.4558]
[1754225031082,2.275136,3499.0,3498.5,1.315208]
[1754225031283,2.275136,3499.0,3498.5,1.4881188]
[1754225031468,2.275136,3499.0,3498.6,3.3008759]
[1754225031667,2.717836,3499.0,3498.7,0.4558]
[1754225031872,2.275136,3499.0,3498.8,4.8218]
[1754225032072,2.275136,3499.0,3498.9,4.365]
[1754225032880,3.176936,3499.0,3498.6,2.9882759]
[1754225033217,0.4427,3498.9,3498.7,4.365]
[1754225033403,2.717836,3499.0,3498.7,5.17194839]
[1754225035352,2.717836,3499.0,3498.8,2.8450759]
[1754225036143,0.9018,3498.9,3498.8,2.8450759]
[1754225036298,0.9018,3498.9,3498.8,7.2100759]
[1754225036500,0.9018,3498.9,3498.8,2.8450759]
[1754225036744,3.9018,3498.9,3498.8,4.365]
[1754225037998,3.9018,3498.9,3498.2,3.7045579]
[1754225038211,0.9018,3498.8,3498.3,4.365]
[1754225038436,0.4427,3498.8,3498.3,4.365]
[1754225038641,0.4377,3498.7,3498.3,4.8417]
[1754225039534,0.4377,3498.7,3498.3,4.365]
[1754225039715,0.4377,3498.7,3498.4,0.4767]
[1754225040235,3.0,3498.9,3498.4,0.4767]
[1754225040633,0.4377,3498.8,3498.3,4.365]
[1754225040812,0.4377,3498.7,3498.3,4.365]
[1754225041013,0.4377,3498.7,3498.3,4.8417]
[1754225041214,0.4377,3498.7,3498.4,2.8450759]
[1754225041438,0.4377,3498.7,3498.4,3.3217759]
[1754225041640,3.0,3498.9,3498.4,2.8450759]
[1754225041804,0.4377,3498.6,3498.5,4.364]
[1754225042004,0.9006,3498.6,3498.5,4.364]
[1754225043855,0.9006,3498.6,3498.5,4.362]
[1754225044204,0.4377,3498.6,3498.4,2.8450759]
[1754225044408,0.9006,3498.5,3498.4,2.8450759]
[1754225044722,0.9006,3498.5,3498.4,7.2070759]
[1754225045044,0.4377,3498.5,3498.4,2.8450759]
[1754225045363,0.9006,3498.5,3498.4,7.2070759]
[1754225045713,0.9006,3498.5,3498.4,7.2060759]
[1754225046723,0.4377,3498.5,3498.4,7.2060759]
[1754225048116,0.4377,3498.8,3498.4,7.2060759]
[1754225048439,0.99009396,3498.8,3498.5,4.36]
[1754225048643,3.5287136,3498.9,3498.5,4.36]
[1754225048644,0.9006,3498.7,3498.5,4.36]
[1754225048826,0.4629,3498.7,3498.5,4.36]
[1754225049032,0.4377,3498.6,3498.5,4.36]
[1754225049334,3.001,3498.9,3498.5,4.36]
[1754225049649,0.08949394,3498.8,3498.5,4.8367]
[1754225049877,0.4377,3498.7,3498.5,4.8367]
[1754225050010,0.08949394,3498.8,3498.5,4.8367]
[1754225050345,0.001,3498.9,3498.6,0.4767]
[1754225050842,0.001,3498.9,3498.6,0.9256]
[1754225051351,0.001,3498.9,3498.7,0.4767]
[1754225051652,0.001,3498.9,3498.8,4.359]
[1754225052222,0.001,3498.9,3498.8,4.8357]
[1754225053244,0.001,3498.9,3498.8,7.6807759]
[1754225054118,0.001,3498.9,3498.8,4.8357]
[1754225054522,0.001,3498.9,3498.8,5.695054]
[1754225055451,0.001,3498.9,3498.8,6.39717633]
[1754225055945,0.001,3498.9,3498.8,6.84607633]
[1754225056733,0.001,3498.9,3498.8,6.98927633]
[1754225056935,0.001,3498.9,3498.8,6.54037633]
[1754225059514,0.001,3498.9,3498.8,6.98927633]
[1754225059875,0.4377,3499.9,3498.8,6.98927633]
[1754225060152,0.52716581,3499.9,3498.9,1.62452763]
[1754225060470,0.4377,3499.9,3499.1,0.1432]
[1754225060912,0.5,3500.0,3499.1,0.5921]
[1754225061130,0.5,3500.0,3499.1,1.0688]
[1754225061327,0.5,3500.0,3499.1,1.93748206]
[1754225061550,0.5,3500.0,3499.1,2.62736797]
[1754225062116,0.4377,3499.9,3499.1,2.62736797]
[1754225063552,0.5,3500.0,3499.1,2.62736797]
[1754225063852,0.4387,3499.2,3499.1,5.91556797]
[1754225064049,0.001,3499.2,3499.1,5.216227]
[1754225064256,0.001,3499.2,3499.1,1.479127]
[1754225064711,0.001,3499.2,3499.1,8.840127]
[1754225064915,0.001,3499.2,3499.1,9.289027]
[1754225065115,0.001,3499.2,3499.1,10.2179297]
[1754225067052,0.001,3499.2,3499.1,10.7679297]
[1754225067757,0.4377,3501.0,3499.2,3.55]
[1754225068050,0.4377,3501.1,3499.4,0.55]
[1754225068250,0.4377,3501.1,3500.7,0.1432]
[1754225068438,0.4377,3501.1,3500.8,4.368]
[1754225068871,0.4374,3501.4,3500.9,3.8004759]
[1754225069071,1.719,3503.0,3501.0,4.369]
[1754225069282,0.4374,3501.3,3501.0,4.369]
[1754225069671,0.4374,3501.3,3501.0,4.8615]
[1754225069882,0.11942439,3502.2,3501.0,4.8615]
[1754225070181,0.11942439,3502.2,3501.0,4.369]
[1754225070182,0.4374,3501.6,3501.0,4.369]
[1754225070349,0.8953,3501.6,3500.9,3.3079759]
[1754225070554,0.8953,3501.5,3501.0,4.375]
[1754225070762,0.55,3502.0,3501.0,4.375]
[1754225070949,0.4374,3501.9,3501.0,4.375]
[1754225071171,0.4579,3501.8,3501.0,4.375]
[1754225071486,0.4374,3501.7,3501.0,4.375]
[1754225071785,0.4579,3501.6,3501.1,0.4579]
[1754225072082,0.4374,3501.5,3501.1,0.4579]
[1754225072285,0.4579,3501.4,3501.1,0.4579]
[1754225072452,0.4374,3501.3,3501.1,0.4579]
[1754225072652,0.4374,3501.3,3501.2,4.376]
[1754225072960,0.4374,3501.3,3501.1,0.4579]
[1754225073147,0.55,3502.0,3501.1,0.4579]
[1754225073351,0.4579,3501.9,3501.2,4.375]
[1754225073782,0.4374,3501.8,3501.2,4.375]
[1754225073984,0.4579,3501.7,3501.2,4.375]
[1754225074167,0.4374,3501.6,3501.2,4.375]
[1754225074350,0.26031695,3502.2,3501.2,4.375]
[1754225074351,0.8953,3501.5,3501.3,4.375]
[1754225074551,0.8953,3501.4,3500.5,0.4925]
[1754225074787,0.8953,3501.3,3500.9,0.858918]
[1754225075090,0.8953,3501.2,3501.0,4.377]
[1754225075388,0.8953,3501.1,3501.0,4.377]
[1754225076252,0.8953,3501.1,3500.9,0.858918]
[1754225076452,0.8953,3501.0,3500.6,4.376]
[1754225076679,0.55,3501.5,3500.6,4.376]
[1754225076887,0.4374,3500.9,3500.6,4.376]
[1754225077052,0.4374,3501.5,3500.7,0.4925]
[1754225077867,0.4579,3501.4,3500.7,0.4925]
[1754225078197,0.4374,3501.3,3500.7,0.4925]
[1754225078872,0.4374,3501.3,3500.7,0.9504]
[1754225079857,0.8953,3501.3,3500.7,0.4579]
[1754225080063,0.93100204,3501.2,3500.8,4.384]
[1754225080380,0.8953,3501.1,3500.8,4.384]
[1754225080583,0.4579,3501.1,3500.8,4.384]
[1754225080782,0.4374,3501.0,3500.7,0.4579]
[1754225080977,0.4374,3500.9,3500.7,0.4579]
[1754225081178,0.4374,3500.9,3500.2,0.1432]
[1754225081179,0.4936051,3500.9,3500.6,4.384]
[1754225081391,0.4374,3500.8,3500.6,4.8765]
[1754225081589,0.4374,3500.7,3500.6,4.8765]
[1754225081800,0.4374,3500.7,3500.6,0.4925]
[1754225082165,0.8953,3500.7,3500.6,4.8755]
[1754225082701,0.4374,3500.7,3500.6,0.4925]
[1754225084919,0.03569592,3501.8,3500.6,0.4925]
[1754225085084,0.4374,3501.0,3500.6,0.4925]
[1754225085595,0.001,3501.4,3500.7,0.4925]
[1754225086187,0.001,3501.4,3500.8,0.4645]
[1754225086385,0.001,3501.4,3500.9,4.383]
[1754225086584,0.001,3501.4,3500.9,4.8755]
[1754225086776,0.001,3501.4,3501.0,0.4925]
[1754225086978,0.001,3501.4,3501.0,0.9504]
[1754225087205,0.001,3501.4,3501.1,0.4925]
[1754225087814,0.001,3501.4,3501.2,0.4925]
[1754225088797,0.001,3501.4,3501.0,0.4579]
[1754225089002,0.001,3501.4,3501.2,0.4925]
[1754225089404,0.001,3501.4,3501.0,0.4579]
[1754225089608,0.4374,3501.3,3501.0,0.9504]
[1754225091585,0.4374,3501.3,3501.1,2.8450759]
[1754225091994,0.4374,3501.3,3501.1,3.3375759]
[1754225092535,0.4374,3501.3,3501.1,2.8450759]
[1754225092882,0.001,3501.4,3501.1,3.3029759]
[1754225093101,0.4374,3501.3,3501.1,7.2240759]
[1754225093306,0.4374,3501.2,3501.1,7.2240759]
[1754225093696,0.4374,3501.2,3501.1,2.8450759]
[1754225093916,0.8953,3501.2,3501.1,2.8450759]
[1754225095718,0.4374,3501.2,3501.1,2.8450759]
[1754225096042,0.8953,3501.2,3501.1,2.8450759]
[1754225097416,0.8953,3501.2,3501.0,2.8450759]
[1754225097611,0.4579,3501.2,3501.0,2.8450759]
[1754225097851,0.47310306,3501.1,3500.7,0.858941]
[1754225098143,0.54733329,3501.0,3500.7,4.376]
[1754225098334,0.08944598,3500.9,3500.7,4.376]
[1754225098529,0.4705,3500.8,3500.7,4.376]
[1754225099338,0.4705,3500.8,3500.4,0.4925]
[1754225099537,0.4705,3500.8,3500.5,0.4887]
[1754225100248,0.08944598,3500.9,3500.2,0.4579]
[1754225100435,0.4705,3500.7,3500.0,0.002]
[1754225100639,0.55994598,3500.7,3500.0,0.002]
[1754225100828,0.4551,3500.6,3500.0,0.002]
[1754225101159,0.54454598,3500.6,3500.0,0.002]
[1754225101491,0.08944598,3500.6,3500.0,0.5001258]
[1754225101765,0.4705,3500.8,3500.1,0.4887]
[1754225101942,0.03570714,3500.7,3500.2,4.392]
[1754225102143,0.4705,3500.7,3500.3,0.4887]
[1754225102369,0.4705,3500.7,3500.4,0.4887]
[1754225102865,0.03570816,3500.6,3500.4,0.4887]
[1754225103172,0.4705,3500.7,3500.4,0.4887]
[1754225103592,0.4705,3500.7,3500.1,4.391]
[1754225103593,0.4705,3500.6,3500.1,4.391]
[1754225103732,0.50620918,3500.5,3500.1,0.4887]
[1754225103931,0.4705,3500.4,3500.1,4.8797]
[1754225104130,0.4705,3500.7,3500.2,0.4887]
[1754225104374,0.55,3501.2,3500.2,0.4887]
[1754225104538,0.4705,3500.6,3500.2,0.4887]
[1754225104739,0.4705,3500.6,3500.1,4.391]
[1754225104939,0.4705,3500.6,3500.3,0.4887]
[1754225105565,0.4705,3500.5,3500.1,4.8797]
[1754225105767,0.4705,3500.5,3500.1,4.391]
[1754225105992,3.0,3501.1,3500.2,0.4887]
[1754225106141,0.4705,3500.8,3500.2,0.4887]
[1754225106361,0.55994721,3500.8,3500.2,0.4887]
[1754225107395,1.01504721,3500.8,3500.2,0.4887]
[1754225107593,0.4705,3500.7,3500.0,0.002]
[1754225107796,0.03570816,3500.6,3500.0,0.002]
[1754225108097,0.9256,3500.7,3500.0,0.002]
[1754225108291,0.4705,3500.5,3500.0,0.002]
[1754225108699,0.4705,3500.4,3500.0,0.4907]
[1754225109559,0.4705,3500.4,3500.0,0.002]
[1754225109763,0.4705,3500.4,3500.1,0.4887]
[1754225110299,0.55995271,3500.4,3500.1,0.4887]
[1754225110465,0.4705,3500.4,3500.1,0.4887]
[1754225110993,0.08945338,3500.5,3500.1,0.4887]
[1754225111207,0.4705,3500.3,3500.0,0.002]
[1754225111513,0.4705,3500.3,3500.1,0.4887]
[1754225112363,0.55995546,3500.3,3500.1,0.4887]
[1754225112563,0.4705,3500.3,3500.1,0.4887]
[1754225112992,0.50621224,3500.2,3500.0,0.002]
[1754225113194,0.96131224,3500.2,3500.0,0.002]
[1754225113378,0.4705,3500.1,3500.0,0.002]
[1754225114004,0.9256,3500.1,3500.0,0.002]
[1754225115710,1.01506049,3500.1,3500.0,0.002]
[1754225116488,0.08946049,3500.1,3500.0,0.002]
[1754225116698,0.4705,3500.3,3500.0,0.002]
[1754225116875,0.4705,3500.1,3500.0,0.002]
[1754225117075,1.01506049,3500.1,3500.0,0.002]
[1754225119823,1.4522798,3500.1,3500.0,0.002]
[1754225120020,1.60077375,3500.1,3500.0,0.002]
[1754225120517,1.60079272,3500.1,3500.0,0.002]
[1754225121017,1.56507946,3500.1,3500.0,0.002]
[1754225122218,38.95007946,3500.1,3500.0,0.002]
[1754225122524,40.66907946,3500.1,3500.0,0.002]
[1754225125919,40.98426385,3500.1,3500.0,0.002]
[1754225126425,35.67366385,3500.1,3500.0,0.002]
[1754225126733,37.47247946,3500.1,3500.0,0.002]
[1754225127099,38.39807946,3500.1,3500.0,0.002]
[1754225127340,38.94808316,3500.1,3500.0,0.002]
[1754225127502,39.58719668,3500.1,3500.0,0.002]
[1754225127835,40.66708316,3500.1,3500.0,0.002]
[1754225128715,40.95398316,3500.1,3500.0,0.002]
[1754225128914,41.26916755,3500.1,3500.0,0.002]
[1754225130240,40.95398316,3500.1,3500.0,0.002]
[1754225133214,41.26916755,3500.1,3500.0,0.002]
[1754225134532,35.82898316,3500.1,3500.0,0.002]
[1754225134737,30.08948316,3500.1,3500.0,0.4789]
[1754225134947,30.63948634,3500.1,3500.0,0.4789]
[1754225135155,30.08948634,3500.1,3500.0,0.4789]
[1754225135566,33.63948634,3500.1,3500.0,0.4789]
[1754225138242,38.02148634,3500.1,3500.0,0.002]
[1754225138448,38.02148634,3500.1,3500.0,0.4789]
[1754225139363,38.02148634,3500.1,3500.0,0.9115]
[1754225139528,0.08948634,3500.1,3500.0,0.4789]
[1754225139857,3.0,3500.2,3500.0,0.9115]
[1754225140060,0.08948634,3500.1,3500.0,0.4346]
[1754225140278,0.08948634,3500.3,3500.0,0.4346]
[1754225140488,0.08948634,3500.2,3500.1,0.4326]
[1754225140664,3.0,3500.4,3500.1,0.4326]
[1754225140665,0.08948634,3500.3,3500.1,0.4326]
[1754225140859,0.08948634,3500.2,3500.1,0.9095]
[1754225141067,0.08948634,3500.3,3500.1,0.9095]
[1754225141386,0.08948634,3500.2,3500.1,0.4326]
[1754225141586,0.08948634,3500.3,3500.1,0.4326]
[1754225141787,0.08948634,3500.2,3500.1,0.4326]
[1754225141986,0.08948634,3500.3,3500.1,0.9095]
[1754225142160,0.08948634,3500.2,3500.1,0.4326]
[1754225142355,0.08948634,3500.3,3500.2,0.4769]
[1754225144372,0.08948634,3500.3,3500.2,0.9095]
[1754225144999,0.08948634,3500.3,3500.2,0.4769]
[1754225145169,0.08948634,3500.3,3500.2,0.9095]
[1754225145980,0.08948634,3500.7,3500.2,0.9095]
[1754225146181,0.08948634,3500.6,3500.3,0.9095]
[1754225146363,0.08948634,3500.5,3500.0,0.002]
[1754225146561,0.08948634,3500.8,3500.1,0.9095]
[1754225146794,0.08948634,3500.7,3500.0,0.002]
[1754225147001,0.08948634,3500.8,3500.2,0.9095]
[1754225147177,0.08948634,3500.8,3500.0,0.002]
[1754225147178,0.08948634,3501.0,3500.3,0.4326]
[1754225147359,0.08948634,3501.0,3500.3,0.9095]
[1754225147563,0.001,3501.1,3500.4,0.9095]
[1754225147871,0.09048634,3501.1,3500.5,0.9095]
[1754225148077,0.001,3501.1,3500.6,0.9095]
[1754225148272,0.09048634,3501.1,3500.7,0.9095]
[1754225148477,0.09048634,3501.1,3500.8,0.4326]
[1754225148689,0.09048634,3501.1,3500.9,0.4326]
[1754225149009,0.09048634,3501.1,3500.8,0.4769]
[1754225150209,0.09048634,3501.1,3500.8,0.9095]
[1754225150504,0.001,3501.1,3500.8,0.4769]
[1754225150703,0.001,3501.1,3500.9,0.4326]
[1754225150913,0.001,3501.1,3500.9,0.9095]
[1754225151268,0.001,3501.1,3500.9,0.4326]
[1754225151619,0.001,3501.1,3501.0,0.4769]
[1754225152170,0.001,3501.1,3501.0,0.9095]
[1754225152917,0.001,3501.1,3501.0,0.4769]
[1754225153125,0.001,3501.1,3501.0,0.9095]
[1754225155176,0.001,3501.1,3501.0,1.024019]
[1754225156645,0.001,3501.1,3501.0,3.8690949]
[1754225156792,0.001,3501.1,3501.0,4.2712661]
[1754225161693,0.001,3501.1,3501.0,4.28068239]
[1754225161956,0.001,3501.1,3501.0,4.4144661]
[1754225162699,0.001,3501.1,3501.0,4.97388239]
[1754225163001,0.001,3501.1,3501.0,4.9644661]
[1754225164090,0.001,3501.5,3501.4,2.8430759]
[1754225164343,0.001,3501.5,3501.4,3.67738349]
[1754225164636,0.001,3501.5,3501.4,4.74198349]
[1754225165130,0.001,3501.5,3501.4,4.75139162]
[1754225165540,0.001,3501.5,3501.4,4.74198349]
[1754225166034,0.001,3501.5,3501.4,14.94198349]
[1754225167535,0.001,3501.5,3501.4,19.31398349]
[1754225168044,0.001,3501.5,3501.4,19.43340749]
[1754225169655,0.001,3501.8,3501.7,6.3920759]
[1754225169857,0.001,3501.8,3501.7,9.40971665]
[1754225170151,0.4678,3501.8,3501.7,5.03471665]
[1754225170448,0.4678,3501.8,3501.7,2.8420759]
[1754225170653,0.001,3501.8,3501.7,7.2180759]
[1754225170854,0.001,3501.8,3501.7,2.8420759]
[1754225171052,0.4678,3501.8,3501.5,2.8420759]
[1754225171238,0.99299694,3501.7,3501.6,4.375]
[1754225171438,0.9573,3501.7,3501.6,4.375]
[1754225171737,0.001,3501.8,3501.6,4.376]
[1754225171937,0.001,3501.8,3501.6,5.9687424]
[1754225172255,0.001,3501.8,3501.7,0.4566]
[1754225172814,0.9583,3501.8,3501.7,4.376]
[1754225173215,0.9583,3501.8,3501.6,4.376]
[1754225173437,0.4668,3501.7,3501.6,4.376]
[1754225173636,0.4668,3501.7,3501.4,6.985424]
[1754225173951,0.4905,3501.6,3501.5,4.376]
[1754225174272,0.9573,3501.6,3501.5,4.376]
[1754225175535,0.9573,3501.6,3500.8,3.2986759]
[1754225175760,0.4668,3501.5,3501.2,0.858813]
[1754225176054,0.4668,3501.5,3501.3,4.376]
[1754225176256,0.9573,3501.4,3501.2,0.858813]
[1754225176552,0.001,3501.8,3501.3,4.376]
[1754225176922,0.001,3501.8,3501.3,7.2180759]
[1754225177124,0.9573,3501.7,3501.4,4.375]
[1754225177326,0.9573,3501.6,3501.4,4.375]
[1754225177643,0.9573,3501.5,3501.4,4.375]
[1754225177871,0.4905,3501.5,3501.4,4.375]
[1754225178152,0.4905,3501.5,3501.3,7.2160759]
[1754225178153,0.9573,3501.5,3501.3,7.2160759]
[1754225178361,0.4668,3501.4,3501.2,0.858813]
[1754225178534,0.99300102,3501.3,3500.2,0.4566]
[1754225178729,0.001,3501.8,3500.6,0.858953]
[1754225178730,0.50250204,3501.2,3500.6,0.858953]
[1754225178922,0.9573,3501.2,3500.5,4.376]
[1754225179118,40.0,3500.9,3500.3,4.377]
[1754225179319,0.9573,3500.8,3500.0,4.379]
[1754225179519,0.55,3501.5,3500.0,4.379]
[1754225179720,0.9573,3500.7,3500.0,4.379]
[1754225179922,0.9573,3500.6,3500.0,4.379]
[1754225180162,0.9573,3500.5,3500.0,4.379]
[1754225180455,0.9573,3500.4,3500.0,4.379]
[1754225180658,0.4668,3500.3,3500.0,4.9028137]
[1754225180958,0.4668,3500.6,3500.1,0.4566]
[1754225181166,3.55,3501.3,3500.1,0.4566]
[1754225181459,0.4668,3500.5,3500.0,4.379]
[1754225181670,0.9573,3500.4,3500.0,4.379]
[1754225181873,0.4905,3500.4,3500.0,4.379]
[1754225182031,0.9573,3500.3,3500.0,4.379]
[1754225182233,0.9573,3500.2,3500.0,0.002]
[1754225182680,10.0,3501.1,3500.0,0.002]
[1754225182681,3.0,3500.7,3500.0,0.002]
[1754225182841,0.9573,3500.1,3500.0,0.002]
[1754225184837,0.4668,3500.1,3500.0,0.002]
[1754225185996,0.4668,3501.3,3500.0,0.4586]
[1754225186269,0.4668,3501.3,3500.0,1.0666]
[1754225186471,0.4668,3501.3,3500.1,0.93082579]
[1754225186671,0.4668,3501.3,3500.2,4.383]
[1754225186870,0.9573,3501.3,3500.3,0.54496]
[1754225187170,0.9573,3501.2,3500.3,0.4566]
[1754225187338,0.9573,3501.1,3500.4,4.383]
[1754225187667,0.4668,3501.0,3500.4,4.383]
[1754225187879,0.4668,3501.0,3500.3,0.4566]
[1754225188169,0.9573,3501.0,3500.3,4.383]
[1754225188470,3.0,3501.7,3500.3,4.383]
[1754225188471,0.9573,3500.9,3500.3,4.383]
[1754225188670,0.9528,3500.8,3500.3,4.383]
[1754225188835,0.4749,3500.8,3500.4,0.4831]
[1754225189041,0.4779,3501.1,3500.4,0.48661]
[1754225189246,0.4749,3501.0,3500.5,0.4831]
[1754225189446,3.0,3501.6,3500.5,0.4831]
[1754225189675,0.4749,3500.9,3500.3,4.8661]
[1754225190243,0.4749,3500.9,3500.4,0.48661]
[1754225190565,0.4749,3500.8,3500.4,0.96971]
[1754225191272,0.4749,3500.7,3500.4,0.96971]
[1754225191448,0.4749,3500.7,3500.4,0.4831]
[1754225191942,0.4779,3501.0,3500.0,0.002]
[1754225192282,0.4749,3500.6,3500.0,0.002]
[1754225192454,0.51360918,3500.5,3500.1,0.002]
[1754225192640,0.4779,3500.5,3500.1,0.002]
[1754225193073,0.4749,3500.4,3500.1,0.002]
[1754225193278,1.00837041,3500.9,3500.1,0.002]
[1754225193490,0.4749,3500.3,3500.1,0.002]
[1754225195157,0.4749,3500.8,3500.2,0.4831]
[1754225196428,0.001,3501.9,3500.3,4.8333]
[1754225196718,0.001,3501.9,3500.6,0.1432]
[1754225196719,0.4749,3501.7,3500.6,0.1432]
[1754225196889,0.4749,3501.7,3500.4,4.394]
[1754225197089,0.4779,3501.6,3500.6,0.4831]
[1754225197475,0.4749,3501.5,3500.6,0.4831]
[1754225197675,0.4779,3501.4,3500.4,4.396]
[1754225197976,0.4749,3501.3,3500.5,0.4831]
[1754225198985,0.4759,3501.8,3500.5,1.46084]
[1754225199313,0.4759,3501.8,3500.7,0.1432]
[1754225199740,0.4759,3501.8,3500.8,0.4831]
[1754225200018,0.4779,3501.7,3500.8,0.4831]
[1754225200239,0.4759,3501.8,3500.8,0.9284]
[1754225200382,0.4759,3501.8,3500.9,0.4831]
[1754225200577,0.4759,3501.8,3500.5,4.8861]
[1754225200578,0.51359694,3501.7,3500.5,4.8861]
[1754225200911,0.4749,3501.6,3500.5,4.8861]
[1754225201100,0.4749,3501.6,3500.6,0.4831]
[1754225201288,0.4779,3501.5,3500.6,0.4831]
[1754225201692,0.4749,3501.4,3500.6,0.4831]
[1754225202811,0.4779,3501.3,3500.6,0.4831]
[1754225203023,0.4749,3501.2,3500.6,0.4831]
[1754225206428,3.4749,3501.2,3500.6,0.4831]
[1754225207824,3.4749,3501.2,3500.7,2.8420759]
[1754225207825,0.39528,3501.1,3500.7,2.8420759]
[1754225208027,0.4779,3501.0,3500.7,2.8420759]
[1754225208190,0.9528,3500.9,3500.8,2.8420759]
[1754225208836,0.9501576,3500.9,3500.8,2.8420759]
[1754225209525,0.4749,3500.9,3500.8,2.8420759]
[1754225212726,1.387608,3500.9,3500.4,2.8420759]
[1754225212937,0.9528,3500.8,3500.4,2.8420759]
[1754225213134,0.9528,3500.7,3500.4,2.8420759]
[1754225213306,0.03570714,3500.7,3500.4,2.8420759]
[1754225213633,0.9528,3500.6,3500.1,0.002]
[1754225213833,0.4749,3500.6,3500.1,0.4851]